Cogmind - Beta 16 @@@ ROGUE MODE // 2026.02.09 @ 16:17:48 Player: ae Result: Destroyed by D-53 Grenadier with Mini Grenade Launcher Performance ------------- Evolutions (0) 0 Regions Visited (2) 400 Robots Destroyed (25) 125 Value Destroyed (285) 285 Prototype IDs (2) 40 Alien Tech Used (0) 0 Bonus (0) 0 TOTAL SCORE: 850 Bonus ------- None Cogmind --------- Core Integrity 0/250 Matter 281/300 Energy 90/100 System Corruption 1% Temperature Cool (0) Movement Rolling (100) Location -10/Mines Parts ------- > --- POWER (1) -------- (None) > --- PROPULSION (2) --- Compact Wheel > --- UTILITY (2) ------ (None) > --- WEAPON (2) ------- (None) > --- INVENTORY (5) ---- Light Treads Light Treads Light Treads Compact Wheel Light Cannon Peak State ------------ > --- POWER ------------ Ion Engine > --- PROPULSION ------- Light Treads Light Treads > --- UTILITY ---------- Large Storage Unit Seismic Detector > --- WEAPON ----------- Light Cannon Light Cannon > --- INVENTORY -------- Ion Engine Aluminum Leg Aluminum Leg Wheel Compact Wheel Compact Wheel Small Storage Unit EM Pulse Gun Small Laser Small Laser [Rating: 8] Favorites ----------- Power Ion Engine Engine Ion Engine Propulsion Light Treads Treads Light Treads Wheel Compact Wheel Utility Light Armor Plating Device Seismic Detector Storage Large Storage Unit Processor Signal Interpreter Protection Light Armor Plating Weapon Light Cannon Energy Gun Small Laser Ballistic Cannon Light Cannon Build | -11 -10 -10 ------- Run | Yrd Mat Min Slots Evolved . | . . . Power . | . . . Propulsion . | . . . Utility . | . . . Weapon . | . . . Parts Attached 16 | 7 8 1 Power 1 | 1 . . Engine 1 | 1 . . Core . | . . . Reactor . | . . . Propulsion 5 | 2 2 1 Treads 4 | 2 2 . Leg . | . . . Wheel 1 | . . 1 Hover . | . . . Flight . | . . . Utility 6 | 2 4 . Device 1 | 1 . . Storage 3 | 1 2 . Processor 1 | . 1 . Hackware . | . . . Protection 1 | . 1 . Artifact . | . . . Weapon 4 | 2 2 . Energy Gun 2 | 2 . . Energy Cannon . | . . . Ballistic Gun . | . . . Ballistic Cannon 2 | . 2 . Launcher . | . . . Special Weapon . | . . . Impact Weapon . | . . . Slashing Weapon . | . . . Piercing Weapon . | . . . Special Melee Weapon . | . . . Unidentified Prototypes . | . . . Parts Lost 5 | . . 5 Power 1 | . . 1 Propulsion 1 | . . 1 Utility 1 | . . 1 Weapon 2 | . . 2 Highest Loss Streak 5 | . . 5 To Critical Strikes . | . . . Average Backups 12 | 4 11 17 Power . | . 1 1 Propulsion 6 | 3 5 8 Utility 3 | . 2 5 Weapon 2 | . 2 3 Tool/Special . | . . . Unused Backups 15 | . 3 12 Power 1 | . . 1 Propulsion 7 | . 1 6 Utility 4 | . 1 3 Weapon 3 | . 1 2 Tool/Special . | . . . Average Slot Usage (%) 99 | . 99 98 Engine 13 | . 14 13 Treads 27 | . 28 27 Device 2 | . 4 . Storage 14 | . 14 14 Processor 2 | . 4 . Protection 8 | . 5 13 Energy Gun 4 | . 7 . Ballistic Cannon 22 | . 20 27 Peak Build Rating 8 | 7 8 8 Average Rating 7 | 5 7 7 On Entrance 5 | . 7 8 Avg Prop Armor Cover (%) 26 | . . 26 Naked Turns . | . . . Heaviest Build 94 | 14 94 94 Greatest Support 40 | 40 40 40 Greatest Overweight (x) 5 | . 2 5 Average Overweight (x) . | . . 2 Largest Inventory Capacity 25 | 8 25 25 Average Capacity 17 | 7 15 25 Most Carried 17 | 8 17 17 Average Carried 12 | 4 11 17 Final Capacity 25 | 8 25 5 Final Carried 17 | 8 17 5 Class Distribution -------------------- 100% | Mutant Dominant Class ---------------- Mutant | -10/Materials Mutant | -10/Mines Resources | -11 -10 -10 ----------- Run | Yrd Mat Min Matter Collected 723 | 270 275 178 Remotely . | . . . Salvage Created 464 | 108 310 46 Parts 39 | 5 28 6 Haulers Intercepted 2 | . 2 . Recyclers Shooed 2 | . 1 1 Parts Field Recycled . | . . . Retrieved Matter . | . . . Parts Self-Destructed . | . . . Prevented . | . . . Parts Restored . | . . . Kills | -11 -10 -10 ------- Run | Yrd Mat Min Combat Hostiles Destroyed 17 | . 14 3 Guns 2 | . 2 . Cannons 14 | . 11 3 AOE 1 | . 1 . Classes Destroyed 7 | 2 5 . Worker 1 | . 1 . Builder 1 | . 1 . Tunneler 3 | 1 . 2 Hauler 2 | . 2 . Recycler 1 | 1 . . Swarmer 15 | . 12 3 Grunt 2 | . 2 . Best Kill Streak 4 | 2 4 3 Combat Bots Only 3 | . 3 3 Max Kills in Single Turn 2 | 1 2 1 Gunslinging . | . . . Exploded 1 | . 1 . Melee . | . . . Uniques/NPCs Destroyed . | . . . Combat | -11 -10 -10 -------- Run | Yrd Mat Min Hostile Shots Fired 104 | . 63 41 Missed 18 | . 14 4 Hits 86 | . 49 37 Projectile 86 | . 49 37 AOE 13 | . . 13 Critical Strikes 1 | . . 1 Damage Taken 1092 | . 400 692 Core 262 | . 26 236 Absorbed by Shields . | . . . Core Remaining (%) 100 | 100 . . Volleys Fired 64 | 4 43 17 Largest 2 | 2 2 2 Hottest 80 | 80 80 60 Shots Fired 122 | 8 80 34 Gun 24 | 8 16 . Cannon 98 | . 64 34 Launcher . | . . . Special . | . . . Kinetic 98 | . 64 34 Thermal 9 | 4 5 . Explosive . | . . . Electromagnetic 15 | 4 11 . Robot Hit Streak 7 | 2 3 7 Robot Miss Streak 4 | 1 4 4 Penetration Max . | . . . Secondary Targets . | . . . Shots Hit Robots 58 | 4 34 20 Core Hits 25 | 3 18 4 Critical Kills . | . . . Critical Parts Destroyed . | . . . Critical Strikes 4 | . 3 1 Blast 4 | . 3 1 Melee Attacks . | . . . Impact . | . . . Slashing . | . . . Piercing . | . . . Sneak Attacks . | . . . Combat Hostiles . | . . . Follow-up Attacks . | . . . Damage Inflicted 1002 | 58 597 347 Guns 153 | 58 95 . Cannons 780 | . 433 347 Explosions 69 | . 69 . Melee . | . . . Ramming . | . . . Kinetic 780 | . 433 347 Thermal 143 | 34 109 . Explosive . | . . . Electromagnetic 79 | 24 55 . Impact . | . . . Slashing . | . . . Piercing . | . . . Highest Corruption 1 | . 1 1 Average Corruption 1 | . 1 1 Corruption Purged . | . . . Corruption Blocked . | . . . Effects 8 | . 5 3 Message Errors 4 | . 2 2 Matter Fused 2 | . 2 . Heat Flow Errors 2 | . 1 1 Overload Shots . | . . . Overflow Damage 34 | . 21 13 Projectiles 34 | . 21 13 Explosions . | . . . Melee . | . . . Knockbacks 4 | . 4 . Impact . | . . . Kinetic 4 | . 4 . Secondary . | . . . Self-Inflicted Damage . | . . . Shots . | . . . Rammed . | . . . Targets Rammed . | . . . Kicked . | . . . Crushed . | . . . Highest Temperature 238 | 36 238 108 Average Temperature 37 | 20 35 43 Received Heat Transfer 6 | . 6 . Siege Activations . | . . . Martial Activations . | . . . Shielding Activations . | . . . Robots Disrupted . | . . . Combat Hostiles . | . . . Robots Corrupted . | . . . Combat Hostiles . | . . . Parts Fried . | . . . Impact Corruptions . | . . . Robots Melted . | . . . Combat Hostiles . | . . . Parts Melted . | . . . Heat Transferred 275 | 75 200 . Parts Sabotaged . | . . . Parts Stolen . | . . . Parts Stripped . | . . . Power Chain Reactions 1 | . 1 . Alert | -11 -10 -10 ------- Run | Yrd Mat Min Maximum Alert Level 1 | . 1 . Low Security (%) 92 | 100 87 100 Level 1 7 | . 12 . Level 2 . | . . . Level 3 . | . . . Level 4 . | . . . Level 5 . | . . . High Security . | . . . Max Security . | . . . Peak Influence 226 | 5 226 78 Initial 63 | . 3 63 Average 68 | 1 94 31 Influence Increases 594 | 10 489 95 Destroy 0b10 Robot/C 340 | . 280 60 Destroy 0b10 Robot/NC 40 | 10 20 10 Destroy Leader 64 | . 54 10 Successful Hack 28 | . 28 . Select Force Hacks 30 | . 30 . Disable Machine 45 | . 45 . Destroy Structure 2 | . 2 . Lose Combat Pursuer 45 | . 30 15 Influence Decreases 594 | 5 332 257 Entered New Map 101 | . 2 99 Time Decay 493 | 5 330 158 Squads Dispatched 2 | . 2 . Investigation 1 | . 1 . Extermination . | . . . Reinforcement 1 | . 1 . Assault . | . . . Garrison . | . . . Intercept . | . . . Searches Triggered . | . . . Construction Impeded . | . . . Haulers Reinforced . | . . . Active Scanning Responses . | . . . Cargo Convoy Interrupts . | . . . Stealth | -11 -10 -10 --------- Run | Yrd Mat Min Distress Signals . | . . . Communications Jammed . | . . . Distress Signals . | . . . Times Spotted 29 | . 23 6 Peak Tracking Total 4 | . 4 3 Tactical Retreats 3 | . 2 1 Traps | -11 -10 -10 ------- Run | Yrd Mat Min Traps Triggered 1 | . 1 . Indirectly . | . . . Trap Hack Attempts . | . . . Triggered . | . . . Disarmed . | . . . Reprogrammed . | . . . Reused . | . . . Traps Extracted . | . . . Installed . | . . . Triggered . | . . . Machines | -11 -10 -10 ---------- Run | Yrd Mat Min Machines Disabled 3 | . 3 . Max in Single Turn 1 | . 1 . Machines Repaired . | . . . Machines Dismantled . | . . . Machines Sabotaged . | . . . Overloaded Fab Kills . | . . . Hacking | -11 -10 -10 --------- Run | Yrd Mat Min Machines Accessed 7 | . 7 . Terminals 5 | . 5 . Fabricators . | . . . Repair Stations . | . . . Recycling Units 2 | . 2 . Scanalyzers . | . . . Garrison Access . | . . . Total Hacks 23 | . 23 . Successful 14 | . 14 . Failed 9 | . 9 . Catastrophic 1 | . 1 . Database Lockouts . | . . . Manual 14 | . 14 . Terminals 18 | . 18 . Fabricators . | . . . Repair Stations . | . . . Recycling Units 5 | . 5 . Scanalyzers . | . . . Garrison Access . | . . . Terminal Hacks 5 | . 5 . Prototype ID Bank 1 | . 1 . Branch Access Points 1 | . 1 . Hauler Manifests 1 | . 1 . Registered Components 1 | . 1 . Zone Layout 1 | . 1 . Fabricator Hacks . | . . . Repair Station Hacks . | . . . Recycling Unit Hacks 2 | . 2 . Report Inventory 2 | . 2 . Scanalyzer . | . . . Garrison Access Hacks . | . . . Unauthorized Hacks 7 | . 7 . Terminals 5 | . 5 . Botnet 5 | . 5 . Fabricators . | . . . Repair Stations . | . . . Recycling Units 2 | . 2 . Mask 1 | . 1 . Tunnel 1 | . 1 . Scanalyzers . | . . . Garrison Access . | . . . Data Cores Recovered . | . . . Used . | . . . Hacking Detections 5 | . 5 . Full Trace Events . | . . . Feedback Events . | . . . Feedback Blocked . | . . . Robot Schematics Acquired . | . . . Robots Built . | . . . Authchips . | . . . Time . | . . . Total Robot Build Rating . | . . . Part Schematics Acquired . | . . . Parts Built . | . . . Authchips . | . . . Time . | . . . Total Part Build Rating . | . . . Part Studies Acquired . | . . . Parts Repaired . | . . . Time . | . . . Parts Recycled . | . . . Recycled Matter . | . . . Retrieved Matter . | . . . Retrieved Components . | . . . Parts Scanalyzed . | . . . Part Schematics Acquired . | . . . Parts Damaged . | . . . Bothacking | -11 -10 -10 ------------ Run | Yrd Mat Min Used RIF Installer . | . . . Robots Hacked . | . . . Non-combat . | . . . Combat . | . . . Robot Hacks Applied . | . . . Relay Couplers Released . | . . . Fabnet Peak Effective % . | . . . Robots Rewired . | . . . Allies Hacked . | . . . Hacks Repelled . | . . . Allies | -11 -10 -10 -------- Run | Yrd Mat Min Total Allies . | . . . Largest Group . | . . . Highest-Rated Group . | . . . Highest-Rated Ally . | . . . Total Orders . | . . . Ally Attacks . | . . . Total Damage . | . . . Kills . | . . . Allies Corrupted . | . . . Allies Melted . | . . . Intel | -11 -10 -10 ------- Run | Yrd Mat Min Active Infowar (turns) 251 | 12 239 . Seismic 251 | 12 239 . Robot Analysis Total . | . . . Derelict Logs Recovered 1 | . . 1 Drone Launches . | . . . Drone Recoveries . | . . . Exploration | -11 -10 -10 ------------- Run | Yrd Mat Min Turns Passed 1282 | 99 798 385 Spaces Moved 505 | 44 354 107 Core 1 | 1 . . Treads 497 | 43 354 100 Legs . | . . . Wheels 7 | . . 7 Hover . | . . . Flight . | . . . Fastest Speed 50 | 50 160 160 Average Speed 206 | 157 180 310 Slowest Speed 320 | 160 320 320 Overloaded Moves . | . . . Propulsion Burnouts . | . . . Robots Hopped . | . . . Potential Cave-ins . | . . . Cave-ins Triggered . | . . . Exploration Rate (%) 35 | 5 74 28 Regions Visited 2 Branch Regions 1 Pre-discovered Areas 1 | . 1 . Known Exits Taken 1 | . 1 . Unknown Exits Taken 1 | 1 . . Scrap Searched 1 | . . 1 Spaces Dug . | . . . Terrain Destroyed . | . . . Melee . | . . . Projectile . | . . . AOE . | . . . Terrain Rammed . | . . . Walls Destroyed . | . . . Machines Disabled . | . . . Actions | -11 -10 -10 --------- Run | Yrd Mat Min Total 627 | 62 439 126 Wait 15 | . 15 . Move 503 | 43 353 107 Hop . | . . . Pick Up 17 | 8 9 . Fast Attach 11 | 7 4 . Attach . | . . . Detach 4 | . 4 . Swap 5 | . 4 1 Drop 8 | . 7 1 Fire 64 | 4 43 17 Melee . | . . . Ram . | . . . Kick . | . . . Crush . | . . . Escape Stasis . | . . . Rewire . | . . . Trap . | . . . Miscellaneous . | . . . Route ------- -11/Scrapyard -10/Materials (discovered 2 exits: *Min x2) -10/Mines (discovered 1 exit: [*Mat]) History --------- Turn | Location | Event 2 | -11/Scrapyard | Met Revision 17 32 | -11/Scrapyard | Discovered new exit (range 16) 100 | -11/Scrapyard | Entered Materials 216 | -10/Materials | Discovered new exit (range 17) 324 | -10/Materials | Build established: Mutant 616 | -10/Materials | Identified exit to Mines 898 | -10/Materials | Entered Mines 1007 | -10/Mines | Discovered new exit (range 7) 1074 | -10/Mines | Met a Derelict bent on vengeance 1245 | -10/Mines | Assembled infested the area 1271 | -10/Mines | Core integrity fell below 50% 1279 | -10/Mines | Core integrity fell below 20% 1283 | -10/Mines | Destroyed by D-53 Grenadier with Mini Grenade Launcher Last Messages --------------- 01250_ R-06 Scavenger collects Mining Laser. 01252_ K-01 Serf collects debris. 01254_ R-06 Scavenger collects Imp. Terrain Scanner. 01257_ K-01 Serf collects debris. 01268_ C-45 Heavy ARC bursts open, deploying its payload. 01268_ D-53 Grenadier unfolds itself. 01268_ Lgt. Cannon destroyed. 01268_ K-01 Serf collects debris. 01269_ K-01 Serf destroyed. 01271_ R-06 Scavenger collects Wheel. 01277_ The unstable cave ceiling collapses. 01277_ Ion Engine destroyed. 01277_ Lgt. Armor Plating destroyed. 01279_ The unstable cave ceiling collapses. 01280_ Lgt. Cannon destroyed. 01280_ Lgt. Treads destroyed. 01281_ The unstable cave ceiling collapses. 01283_ Dropped Huge Storage Unit. Map ----- +----------------------------------------------------+ | | | ?????????????????????????????????????? | | ?????????????????????????????????????? | | ?????????????????????????????????????? | | ?????????????????????????????????????? | | ?????????????????????????????????????? | | ?????????????????????????????????????? | | ?????????????????????????????????????? | | ?????????????????????????????????????? | | ?????????????????????????????????????? | | ?????????????????????????????????????? | | ?????????????#???????????????????????? | | ????????????? ???????????????????????? | | ????????????? ???????????????????????? | | ????????????? ???????????????????????? | | ????????????? ???????????????????????? | | ???????????## #??????????????????????? | | ???????????# ??????????????????????? | | ???????????# ??????????????????????? | | ???????????# ;??????????????????????? | | ???????????# #??????????????????????? | | ?????????### ####???????????????????? | | ?????????# ##??????????????????? | | ????????## = #??????????????????? | | ????????# !![ ##??????????????????? | | ????????## =*@=! ##?????????????????? | | ????????# !=] ####???????? ?????? | | ????????# ! ###???? ????? | | ????????# ###?# ????? | | ????????## rk ## ???? | | ????????# t % ???? | | ????????## ???? | | ?????????# ##?????????? | | ?????????## # dd ##??????????? | | ??????????## # % %#???????????? | | ???????????## r ##??????????? | | ????????????##### # %#??????????? | | ?????????????????### #??????????? | | ????????############"%" ##??????????? | | ???????## ! # " ##???????????? | | ???????# = ! # ##????????????? | | ???????# #####= # ##?????????????? | | ???????# #???#! #??????????????? | | ???????# #???# #??????????????? | | ???????# ##???##### #??????????????? | | ?####### ###????????? #??????????????? | | ?# #??????????? #??????????????? | | ?# """ ######?????? ??????????????? | | ?# """ #??????##??????????????? | | ?# """ ##### #??????????????????????? | +----------------------------------------------------+ Best States ------------- Heat Dissipation 25 Energy Generation 10 Energy Capacity 250 Matter Stores 300 Matter Capacity 300 Sight Range 16 Terrain Scan Density 10 Armor Coverage 150 Evasion (%) 40 Recoil Reduction 2 Item Schematics ----------------- None Robot Schematics ------------------ None Fabricated ------------ Nothing Repaired ---------- Nothing Studied --------- None Alien Tech Used ----------------- None Achievements -------------- None Challenges ------------ None Game ------ Seed SpacefoldVisualPod Manual? 0 Play Time 00:10:04 Cumulative 96.3 hours Start 2026.02.09 @ 16:08:47 End 2026.02.09 @ 16:17:48 Sessions 1 Manual Loads 0 Difficulty Rogue Special Mode None Game No. 65 Rogue 61 Adventurer 4 Explorer 0 Win Type - Total 4 Types 4/0/0/0/0/0/0/0/0/0 Lore% 55 Gallery% 49 Achievement% 39 Wizard Run 0 Options --------- Layout 2 ASCII 0 Keyboard 1 Movement Vi Keybinds 0 Fullscreen 0 Font 18/SmallcapsGlow Map View 50x44 Zoom Use 0% Tactical HUD 1 Map Filters NONE Filters NONE Steam 1 RUN: e037201b-eac0-4f2a-9102-fd0a7dcbca67